bitfinex/quotes_BTCUSD_20230906
["timestamp","ask_amount","ask_price","bid_price","bid_amount"]
[1693971219230,1.38146378,25820.0,25819.0,0.13640133]
[1693971219433,1.38182378,25820.0,25819.0,0.13640133]
[1693971219657,1.38158378,25820.0,25819.0,0.13640133]
[1693971219815,1.38236378,25820.0,25819.0,0.13640133]
[1693971220018,1.38254378,25820.0,25819.0,0.13640133]
[1693971220379,1.38290378,25820.0,25819.0,0.13640133]
[1693971220675,1.38266378,25820.0,25819.0,0.13640133]
[1693971221079,1.38254378,25820.0,25819.0,0.13640133]
[1693971221499,1.38248378,25820.0,25819.0,0.13640133]
[1693971221835,1.38818378,25820.0,25819.0,0.13640133]
[1693971222039,1.38320378,25820.0,25819.0,0.13640133]
[1693971222733,1.38332378,25820.0,25819.0,0.13640133]
[1693971223113,1.38290378,25820.0,25819.0,0.13640133]
[1693971223311,1.38296378,25820.0,25819.0,0.13640133]
[1693971223517,1.37984378,25820.0,25819.0,0.13640133]
[1693971223674,1.37642378,25820.0,25819.0,0.91102433]
[1693971224052,1.30982378,25820.0,25819.0,0.91102433]
[1693971224236,1.30982378,25820.0,25819.0,0.13640133]
[1693971224383,1.37966378,25820.0,25819.0,0.13640133]
[1693971224586,1.37942378,25820.0,25819.0,0.13640133]
[1693971224824,1.37936378,25820.0,25819.0,0.13640133]
[1693971225019,1.37960378,25820.0,25819.0,0.13640133]
[1693971225419,1.37966378,25820.0,25819.0,0.13640133]
[1693971225814,1.37972378,25820.0,25819.0,0.13640133]
[1693971226527,1.37990378,25820.0,25819.0,0.13640133]
[1693971226728,1.76930905,25820.0,25819.0,0.13640133]
[1693971226990,1.77752905,25820.0,25819.0,0.13640133]
[1693971227244,1.77740905,25820.0,25819.0,0.13640133]
[1693971227413,1.59177485,25820.0,25819.0,0.13640133]
[1693971227718,1.59021485,25820.0,25819.0,0.13640133]
[1693971228256,1.59015485,25820.0,25819.0,0.13640133]
[1693971228427,1.59009485,25820.0,25819.0,0.13640133]
[1693971228769,1.59165485,25820.0,25819.0,0.13640133]
[1693971229014,1.59159485,25820.0,25819.0,0.13640133]
[1693971229215,1.59219485,25820.0,25819.0,0.13640133]
[1693971229439,1.60011485,25820.0,25819.0,0.13640133]
[1693971229590,2.37488785,25820.0,25819.0,0.13640133]
[1693971229991,2.37482785,25820.0,25819.0,0.13640133]
[1693971230194,2.37578785,25820.0,25819.0,0.13640133]
[1693971230432,2.37326785,25820.0,25819.0,0.13640133]
[1693971230755,2.37350785,25820.0,25819.0,0.13640133]
[1693971230958,2.37338785,25820.0,25819.0,0.13640133]
[1693971231271,2.37224785,25820.0,25819.0,0.13640133]
[1693971231430,2.37158785,25820.0,25819.0,0.13640133]
[1693971231750,2.37140785,25820.0,25819.0,0.13640133]
[1693971231964,2.37182785,25820.0,25819.0,0.13640133]
[1693971232110,1.59615485,25820.0,25819.0,0.13640133]
[1693971232455,1.59231485,25820.0,25819.0,0.13640133]
[1693971232872,1.59621485,25820.0,25819.0,0.13640133]
[1693971233097,1.59615485,25820.0,25819.0,0.13640133]
[1693971233286,1.59609485,25820.0,25819.0,0.13640133]
[1693971233456,1.59519485,25820.0,25819.0,0.13640133]
[1693971233674,1.59507485,25820.0,25819.0,0.13640133]
[1693971233876,1.59531485,25820.0,25819.0,0.13640133]
[1693971234087,1.59567485,25820.0,25819.0,0.13640133]
[1693971234281,2.36942785,25820.0,25819.0,0.13640133]
[1693971234454,2.36708785,25820.0,25819.0,0.13640133]
[1693971234660,1.59123485,25820.0,25819.0,0.13640133]
[1693971234839,1.59129485,25820.0,25819.0,0.13640133]
[1693971235035,1.59123485,25820.0,25819.0,0.13640133]
[1693971235549,1.59081485,25820.0,25819.0,0.13640133]
[1693971235706,1.59123485,25820.0,25819.0,0.13640133]
[1693971236085,1.59129449,25820.0,25819.0,0.13640133]
[1693971236284,1.35924234,25820.0,25819.0,0.13640133]
[1693971236491,1.35888234,25820.0,25819.0,0.13640133]
[1693971236690,1.59045508,25820.0,25819.0,0.13640133]
[1693971236892,1.59039508,25820.0,25819.0,0.13640133]
[1693971237088,1.59099519,25820.0,25819.0,0.13640133]
[1693971237436,1.35918234,25820.0,25819.0,0.13640133]
[1693971237635,1.35930234,25820.0,25819.0,0.13640133]
[1693971237840,1.35978234,25820.0,25819.0,0.13640133]
[1693971238041,1.35972234,25820.0,25819.0,0.13640133]
[1693971238175,1.36008234,25820.0,25819.0,0.13640133]
[1693971238376,1.36002234,25820.0,25819.0,0.13640133]
[1693971238572,1.36014234,25820.0,25819.0,0.13640133]
[1693971238936,1.35996234,25820.0,25819.0,0.13640133]
[1693971239343,1.36002234,25820.0,25819.0,0.13640133]
[1693971239582,1.35996234,25820.0,25819.0,0.13640133]
[1693971239755,1.35984234,25820.0,25819.0,0.13640133]
[1693971240259,1.35978234,25820.0,25819.0,0.13640133]
[1693971240497,1.35774234,25820.0,25819.0,0.13640133]
[1693971240672,1.35846234,25820.0,25819.0,0.13640133]
[1693971240875,1.35822234,25820.0,25819.0,0.13640133]
[1693971241016,1.35828234,25820.0,25819.0,0.13640133]
[1693971241414,1.35822234,25820.0,25819.0,0.13640133]
[1693971241619,1.35924234,25820.0,25819.0,0.13640133]
[1693971242095,1.35798234,25820.0,25819.0,0.13640133]
[1693971242291,1.35750234,25820.0,25819.0,0.13640133]
[1693971242492,1.35762234,25820.0,25819.0,0.13640133]
[1693971242690,1.35834234,25820.0,25819.0,0.13640133]
[1693971242893,1.35864234,25820.0,25819.0,0.13640133]
[1693971243030,1.36020234,25820.0,25819.0,0.13640133]
[1693971243227,1.36014234,25820.0,25819.0,0.13640133]
[1693971243434,1.36092234,25820.0,25819.0,0.13640133]
[1693971243658,1.35972234,25820.0,25819.0,0.13640133]
[1693971244059,1.35978234,25820.0,25819.0,0.13640133]
[1693971244380,1.35888234,25820.0,25819.0,0.13640133]
[1693971244621,1.35546234,25820.0,25819.0,0.13640133]
[1693971245004,1.35516234,25820.0,25819.0,0.13640133]
[1693971245158,1.35534234,25820.0,25819.0,0.13640133]
[1693971245558,1.35744234,25820.0,25819.0,0.13640133]
[1693971245758,1.35756234,25820.0,25819.0,0.13640133]
[1693971245960,1.35780234,25820.0,25819.0,0.13640133]
[1693971246419,1.35726234,25820.0,25819.0,0.13640133]
[1693971246587,1.35894234,25820.0,25819.0,0.13640133]
[1693971246895,1.35612234,25820.0,25819.0,0.13640133]
[1693971247234,1.35582234,25820.0,25819.0,0.13640133]
[1693971247445,1.35618234,25820.0,25819.0,0.13640133]
[1693971247651,1.35612234,25820.0,25819.0,0.13640133]
[1693971247959,1.35594234,25820.0,25819.0,0.13640133]
[1693971248156,1.35582234,25820.0,25819.0,0.13640133]
[1693971248494,1.35912234,25820.0,25819.0,0.13640133]
[1693971248699,1.35756234,25820.0,25819.0,0.13640133]
[1693971248899,1.35762234,25820.0,25819.0,0.13640133]
[1693971249100,1.35738234,25820.0,25819.0,0.13640133]
[1693971249401,1.35702234,25820.0,25819.0,0.13640133]
[1693971249624,1.35762234,25820.0,25819.0,0.13640133]
[1693971249970,1.35276234,25820.0,25819.0,0.13640133]
[1693971250391,0.96563707,25820.0,25819.0,0.13640133]
[1693971250925,0.96545707,25820.0,25819.0,0.13640133]
[1693971251379,0.96581707,25820.0,25819.0,0.13640133]
[1693971251587,0.96563707,25820.0,25819.0,0.13640133]
[1693971251792,0.96569707,25820.0,25819.0,0.13640133]
[1693971252004,0.96539707,25820.0,25819.0,0.13640133]
[1693971252528,0.97205707,25820.0,25819.0,0.13640133]
[1693971252734,1.28308389,25820.0,25819.0,0.13640133]
[1693971252865,1.28368389,25820.0,25819.0,0.13640133]
[1693971253067,1.28356389,25820.0,25819.0,0.13640133]
[1693971253449,1.28182389,25820.0,25819.0,0.13640133]
[1693971253657,1.28164389,25820.0,25819.0,0.13640133]
[1693971253858,1.28152389,25820.0,25819.0,0.13640133]
[1693971254101,1.28320389,25820.0,25819.0,0.13640133]
[1693971254304,1.28032389,25820.0,25819.0,0.13640133]
[1693971254507,1.28104389,25820.0,25819.0,0.13640133]
[1693971254709,1.28158389,25820.0,25819.0,0.13640133]
[1693971255005,1.27984389,25820.0,25819.0,0.13640133]
[1693971255212,1.27972389,25820.0,25819.0,0.13640133]
[1693971255415,1.27954389,25820.0,25819.0,0.13640133]
[1693971255616,1.28290389,25820.0,25819.0,0.13640133]
[1693971255822,1.28272389,25820.0,25819.0,0.13640133]
[1693971256025,2.83178989,25820.0,25819.0,0.01590133]
[1693971256243,2.97230948,25820.0,25819.0,0.01590133]
[1693971256449,4.18074149,25820.0,25819.0,0.01590133]
[1693971256651,4.18314149,25820.0,25819.0,0.01590133]
[1693971256830,4.18182149,25820.0,25819.0,0.01590133]
[1693971256987,4.18578149,25820.0,25819.0,0.01590133]
[1693971257181,4.18494149,25820.0,25819.0,0.01590133]
[1693971257412,4.18386149,25820.0,25819.0,0.01590133]
[1693971257639,4.18230149,25820.0,25819.0,0.01590133]
[1693971257772,4.18122149,25820.0,25819.0,0.01590133]
[1693971257978,4.17966149,25820.0,25819.0,0.01590133]
[1693971258178,4.17858149,25820.0,25819.0,0.015099]
[1693971258379,4.17750149,25820.0,25819.0,0.015099]
[1693971258580,4.17762149,25820.0,25819.0,0.015099]
[1693971258896,3.87254248,25820.0,25819.0,0.015099]
[1693971259084,4.12602149,25820.0,25819.0,0.01590256]
[1693971259278,4.17378149,25820.0,25819.0,0.01590256]
[1693971259488,4.17294149,25820.0,25819.0,0.01590256]
[1693971259693,4.14774149,25820.0,25819.0,0.01590256]
[1693971259894,4.14618149,25820.0,25819.0,0.01590256]
[1693971260118,4.14762149,25820.0,25819.0,0.01590256]
[1693971260396,4.14150149,25820.0,25819.0,0.01590256]
[1693971260523,4.14306149,25820.0,25819.0,0.01590256]
[1693971260728,3.86114248,25820.0,25819.0,0.01590256]
[1693971260911,3.88430248,25820.0,25819.0,0.01590256]
[1693971261112,3.88286248,25820.0,25819.0,0.01590256]
[1693971261480,3.88130248,25820.0,25819.0,0.01590256]
[1693971261655,3.88070248,25820.0,25819.0,0.01590256]
[1693971261832,3.88394248,25820.0,25819.0,0.01590256]
[1693971262046,3.88298248,25820.0,25819.0,0.01590256]
[1693971262262,3.88274248,25820.0,25819.0,0.01590256]
[1693971262465,3.88478248,25820.0,25819.0,0.01590256]
[1693971262679,3.88490248,25820.0,25819.0,0.01590256]
[1693971262902,3.88442248,25820.0,25819.0,0.01590256]
[1693971263234,3.88298248,25820.0,25819.0,0.01590256]
[1693971263439,3.74834248,25820.0,25819.0,0.01590256]
[1693971263575,3.87950248,25820.0,25819.0,0.01590256]
[1693971263791,3.88214248,25820.0,25819.0,0.01590256]
[1693971263980,3.89942248,25820.0,25819.0,0.01590256]
[1693971264191,4.19418149,25820.0,25819.0,0.01590256]
[1693971264391,4.18938149,25820.0,25819.0,0.01590256]
[1693971264637,4.18398149,25820.0,25819.0,0.01590256]
[1693971264838,4.18110149,25820.0,25819.0,0.01590256]
[1693971265076,4.18062149,25820.0,25819.0,0.01590256]
[1693971265316,4.18158149,25820.0,25819.0,0.01590256]
[1693971265480,4.18110149,25820.0,25819.0,0.01590256]
[1693971265812,4.18410149,25820.0,25819.0,0.01590256]
[1693971265990,4.18506149,25820.0,25819.0,0.01590256]
[1693971266209,4.18554149,25820.0,25819.0,0.015099]
[1693971266446,3.96620828,25820.0,25819.0,0.015099]
[1693971266663,4.81333102,25820.0,25819.0,0.015099]
[1693971267002,4.97175102,25820.0,25819.0,0.015099]
[1693971267218,4.96983102,25820.0,25819.0,0.015099]
[1693971267444,4.96911102,25820.0,25819.0,0.015099]
[1693971267651,5.66551102,25820.0,25819.0,0.015099]
[1693971267980,5.66167102,25820.0,25819.0,0.015099]
[1693971268105,5.66119102,25820.0,25819.0,0.015099]
[1693971268313,5.66431102,25820.0,25819.0,0.015099]
[1693971268522,5.66359102,25820.0,25819.0,0.015099]
[1693971268725,5.66347102,25820.0,25819.0,0.015099]
[1693971268985,5.65951102,25820.0,25819.0,0.015099]
[1693971269315,5.67127102,25820.0,25819.0,0.015099]
[1693971269447,5.68351102,25820.0,25819.0,0.015099]
[1693971269788,5.69119102,25820.0,25819.0,0.015099]
[1693971269967,5.69623102,25820.0,25819.0,0.015099]
[1693971270163,5.69419102,25820.0,25819.0,0.015099]
[1693971270369,5.69695102,25820.0,25819.0,0.015099]
[1693971270569,5.69611102,25820.0,25819.0,0.015099]
[1693971270798,5.69467102,25820.0,25819.0,0.015099]
[1693971270999,5.69419102,25820.0,25819.0,0.015099]
[1693971271201,5.69359102,25820.0,25819.0,0.015099]
[1693971271428,5.69311102,25820.0,25819.0,0.015099]
[1693971271628,5.98335102,25820.0,25819.0,0.015099]
[1693971272045,5.78271102,25820.0,25819.0,0.015099]
[1693971272235,5.78235102,25820.0,25819.0,0.015099]
[1693971272559,5.77635102,25820.0,25819.0,0.015099]
[1693971272837,5.77575102,25820.0,25819.0,0.015099]
[1693971273070,5.77539102,25820.0,25819.0,0.015099]
[1693971273296,6.32021991,25820.0,25819.0,0.015099]
[1693971273500,5.99559102,25820.0,25819.0,0.015099]
[1693971273703,6.30696904,25820.0,25819.0,0.015099]
[1693971273918,6.28242904,25820.0,25819.0,0.015099]
[1693971274121,6.30696904,25820.0,25819.0,0.015099]
[1693971274329,6.31020904,25820.0,25819.0,0.015099]
[1693971274537,6.31110904,25820.0,25819.0,0.015099]
[1693971274709,6.28746904,25820.0,25819.0,0.015099]
[1693971274939,6.28800904,25820.0,25819.0,0.015099]
[1693971275118,6.31128904,25820.0,25819.0,0.015099]
[1693971275372,6.31380904,25820.0,25819.0,0.015099]
[1693971275550,6.31740904,25820.0,25819.0,0.015099]
[1693971275775,6.31758904,25820.0,25819.0,0.015099]
[1693971275924,6.31794904,25820.0,25819.0,0.015099]
[1693971276132,6.31902904,25820.0,25819.0,0.015099]
[1693971276341,6.35826904,25820.0,25819.0,0.015099]
[1693971276561,6.35880904,25820.0,25819.0,0.015099]
[1693971276911,6.04725102,25820.0,25819.0,0.015099]
[1693971277102,6.05319102,25820.0,25819.0,0.015099]
[1693971277298,6.05049102,25820.0,25819.0,0.015099]
[1693971277501,6.05067102,25820.0,25819.0,0.015099]
[1693971277771,6.05373102,25820.0,25819.0,0.015099]
[1693971277972,6.04635102,25820.0,25819.0,0.015099]
[1693971278147,6.04401102,25820.0,25819.0,0.015099]
[1693971278355,6.04437102,25820.0,25819.0,0.015099]
[1693971278563,6.07947102,25820.0,25819.0,0.015099]
[1693971278768,6.10828388,25820.0,25819.0,0.015099]
[1693971279150,6.10774388,25820.0,25819.0,0.015099]
[1693971279326,6.10720388,25820.0,25819.0,0.015099]
[1693971279534,6.10810388,25820.0,25819.0,0.015099]
[1693971279734,6.10936388,25820.0,25819.0,0.015099]
[1693971279908,6.11260388,25820.0,25819.0,0.015099]
[1693971280108,6.10936388,25820.0,25819.0,0.015099]
[1693971280314,6.11692388,25820.0,25819.0,0.015099]
[1693971280533,6.07588388,25820.0,25819.0,0.015099]
[1693971280735,6.07768388,25820.0,25819.0,0.015099]
[1693971280940,6.09568388,25820.0,25819.0,0.015099]
[1693971281155,6.10864388,25820.0,25819.0,0.015099]
[1693971281357,6.12052388,25820.0,25819.0,0.015099]
[1693971281557,6.12016388,25820.0,25819.0,0.015099]
[1693971281764,6.12124388,25820.0,25819.0,0.015099]
[1693971282012,6.13564388,25820.0,25819.0,0.015099]
[1693971282220,6.14086388,25820.0,25819.0,0.015099]
[1693971282432,1.05812203,25818.0,25817.0,0.019998]
[1693971282784,7.38083059,25818.0,25817.0,0.019998]
[1693971282991,7.38119059,25818.0,25817.0,0.019998]
[1693971283166,7.58717059,25818.0,25817.0,0.019998]
[1693971283371,7.59149059,25818.0,25817.0,0.019998]
[1693971283590,7.62719059,25818.0,25817.0,0.019998]
[1693971283802,7.61153059,25818.0,25817.0,0.019998]
[1693971284000,7.61189059,25818.0,25817.0,0.019998]
[1693971284207,7.61657059,25818.0,25817.0,0.019998]
[1693971284414,7.63985059,25818.0,25817.0,0.019998]
[1693971284622,7.64237059,25818.0,25817.0,0.019998]
[1693971284769,7.63193059,25818.0,25817.0,0.019998]
[1693971285206,7.63247059,25818.0,25817.0,0.019998]
[1693971285403,7.63517059,25818.0,25817.0,0.019998]
[1693971285606,7.63211059,25818.0,25817.0,0.019998]
[1693971285929,7.63103059,25818.0,25817.0,0.019998]
[1693971286083,7.63319059,25818.0,25817.0,0.019998]
[1693971286299,7.63409059,25818.0,25817.0,0.019998]
[1693971286495,7.62941059,25818.0,25817.0,0.019998]
[1693971286700,7.61753059,25818.0,25817.0,0.019998]
[1693971286896,7.61735059,25818.0,25817.0,0.019998]
[1693971287097,7.60925059,25818.0,25817.0,0.019998]
[1693971287303,7.60943059,25818.0,25817.0,0.019998]
[1693971287645,7.60961059,25818.0,25817.0,0.019998]
[1693971287847,7.35911059,25818.0,25817.0,0.019998]
[1693971288052,7.36487059,25818.0,25817.0,0.019998]
[1693971288349,7.36439059,25818.0,25817.0,0.019998]
[1693971288580,7.36955059,25818.0,25817.0,0.019998]
[1693971288758,7.37411059,25818.0,25817.0,0.019998]
[1693971288959,7.37915059,25818.0,25817.0,0.019998]
[1693971289095,7.40099059,25818.0,25817.0,0.019998]
[1693971289460,7.40183059,25818.0,25817.0,0.019998]
[1693971289662,7.40147059,25818.0,25817.0,0.019998]
[1693971289869,7.38815059,25818.0,25817.0,0.019998]
[1693971290068,7.38455059,25818.0,25817.0,0.019998]
[1693971290299,7.37567059,25818.0,25817.0,0.01974726]
[1693971290475,7.37507059,25818.0,25817.0,0.01974726]
[1693971290733,7.37567059,25818.0,25817.0,0.01974726]
[1693971290937,7.37567059,25818.0,25814.0,0.178498]
[1693971290938,0.99812203,25815.0,25814.0,0.01859789]
[1693971291141,4.75996788,25815.0,25814.0,0.01859789]
[1693971291341,5.44960788,25815.0,25814.0,0.01859789]
[1693971291524,6.39665408,25815.0,25814.0,0.01859789]
[1693971291698,6.39581408,25815.0,25814.0,0.01859789]
[1693971291899,6.76265935,25815.0,25814.0,0.01859789]
[1693971292104,5.37010922,25815.0,25814.0,0.01859789]
[1693971292361,5.12962922,25815.0,25814.0,0.01859789]
[1693971292567,5.10490922,25815.0,25814.0,0.01859789]
[1693971292770,5.12944922,25815.0,25814.0,0.01859789]
[1693971292950,5.37720912,25815.0,25814.0,0.01859789]
[1693971293198,5.76613439,25815.0,25814.0,0.01859789]
[1693971293400,5.77165439,25815.0,25814.0,0.01859789]
[1693971293603,5.68355449,25815.0,25814.0,0.01859789]
[1693971293803,5.7808967,25815.0,25814.0,0.01859789]
[1693971294007,5.7904967,25815.0,25814.0,0.01859789]
[1693971294213,5.8189367,25815.0,25814.0,0.01859789]
[1693971294421,5.73719449,25815.0,25814.0,0.01859789]
[1693971294594,5.74739449,25815.0,25814.0,0.01859789]
[1693971294891,5.74643449,25815.0,25814.0,0.01859789]
[1693971295093,5.74655449,25815.0,25814.0,0.01859789]
[1693971295297,5.74079449,25815.0,25814.0,0.01859789]
[1693971295475,5.74127449,25815.0,25814.0,0.01859789]
[1693971295649,5.8297461,25815.0,25814.0,0.01859789]
[1693971295853,5.8429461,25815.0,25814.0,0.01859789]
[1693971296058,5.8483461,25815.0,25814.0,0.01859789]
[1693971296268,5.8470261,25815.0,25814.0,0.01859789]
[1693971296474,5.8452261,25815.0,25814.0,0.01859789]
[1693971296820,6.03007509,25815.0,25814.0,0.01859789]
[1693971297017,6.01759509,25815.0,25814.0,0.01859789]
[1693971297132,6.01783509,25815.0,25814.0,0.01859789]
[1693971297341,6.01963509,25815.0,25814.0,0.01859789]
[1693971297771,6.01879509,25815.0,25814.0,0.01859789]
[1693971297969,6.01915509,25815.0,25814.0,0.01859789]
[1693971298166,6.01723509,25815.0,25814.0,0.01859789]
[1693971298390,6.01843509,25815.0,25814.0,0.01859789]
[1693971298591,6.01747509,25815.0,25814.0,0.01859789]
[1693971298795,6.01759509,25815.0,25814.0,0.01859789]
[1693971298994,6.01915509,25815.0,25814.0,0.01859789]
[1693971299318,6.02071509,25815.0,25814.0,0.01859789]
[1693971299643,5.87926837,25815.0,25814.0,0.01859789]
[1693971299776,6.01644636,25815.0,25814.0,0.01859789]
[1693971299975,6.01212636,25815.0,25814.0,0.01859789]
[1693971300177,5.87326837,25815.0,25814.0,0.01859789]
[1693971300377,5.87098837,25815.0,25814.0,0.01859789]
[1693971300702,5.87092345,25815.0,25814.0,0.01859789]
[1693971300900,5.87116345,25815.0,25814.0,0.01859789]
[1693971301105,5.87296345,25815.0,25814.0,0.01859789]
[1693971301454,5.93064947,25815.0,25814.0,0.01859789]
[1693971301631,5.93460947,25815.0,25814.0,0.01859789]
[1693971301875,6.63508947,25815.0,25814.0,0.01859789]
[1693971302081,6.63604947,25815.0,25814.0,0.01859789]
[1693971302286,6.63568947,25815.0,25814.0,0.01859789]
[1693971302489,6.63688947,25815.0,25814.0,0.01859789]
[1693971302693,6.63064947,25815.0,25814.0,0.01859789]
[1693971302844,6.62980947,25815.0,25814.0,0.01859789]
[1693971303085,6.75486947,25815.0,25814.0,0.01859789]
[1693971303271,6.75642947,25815.0,25814.0,0.01859789]
[1693971303447,6.75606947,25815.0,25814.0,0.01859789]
[1693971303667,6.75618947,25815.0,25814.0,0.01859789]
[1693971303863,6.75630947,25815.0,25814.0,0.01859789]
[1693971304065,6.78270947,25815.0,25814.0,0.01859789]
[1693971304273,6.78294947,25815.0,25814.0,0.01859789]
[1693971304615,6.77898947,25815.0,25814.0,0.01859789]
[1693971304798,6.77478947,25815.0,25814.0,0.01859789]
[1693971304970,6.77538947,25815.0,25814.0,0.01859789]
[1693971305174,6.77550947,25815.0,25814.0,0.01859789]
[1693971305579,6.77466947,25815.0,25814.0,0.01859789]
[1693971305777,6.54539938,25815.0,25814.0,0.01859789]
[1693971305978,6.54623938,25815.0,25814.0,0.01859789]
[1693971306183,6.54359938,25815.0,25814.0,0.01859789]
[1693971306383,6.77605298,25815.0,25814.0,0.01859789]
[1693971306724,6.54371938,25815.0,25814.0,0.01859789]
[1693971306948,6.54551938,25815.0,25814.0,0.01859789]
[1693971307156,6.54419938,25815.0,25814.0,0.01859789]
[1693971307371,6.54827938,25815.0,25814.0,0.01859789]
[1693971307573,6.55211938,25815.0,25814.0,0.01859789]
[1693971307785,6.54695938,25815.0,25814.0,0.01859789]
[1693971308012,6.77147938,25815.0,25814.0,0.01859789]
[1693971308188,6.80621938,25815.0,25814.0,0.01859789]
[1693971308391,6.80603938,25815.0,25814.0,0.01859789]
[1693971308598,6.81449938,25815.0,25814.0,0.01859789]
[1693971308805,6.80477938,25815.0,25814.0,0.01859789]
[1693971309006,6.75659938,25815.0,25814.0,0.01859789]
[1693971309181,6.79973938,25815.0,25814.0,0.01859789]
[1693971309402,6.79937938,25815.0,25814.0,0.01859789]
[1693971309622,6.79973938,25815.0,25814.0,0.01859789]
[1693971309806,6.79361938,25815.0,25814.0,0.01859789]
[1693971310072,6.79415938,25815.0,25814.0,0.01859789]
[1693971310269,6.79001938,25815.0,25814.0,0.01859789]
[1693971310446,6.78965938,25815.0,25814.0,0.01859789]
[1693971310656,6.78461938,25815.0,25814.0,0.01859789]
[1693971310864,7.06485549,25815.0,25814.0,0.01859789]
[1693971311059,7.06989549,25815.0,25814.0,0.01859789]
[1693971311193,7.06683549,25815.0,25814.0,0.01859789]
[1693971311392,7.05927549,25815.0,25814.0,0.01859789]
[1693971311621,7.05819549,25815.0,25814.0,0.01859789]
[1693971311792,7.05387549,25815.0,25814.0,0.01859789]
[1693971312440,7.06089549,25815.0,25814.0,0.01859789]
[1693971312644,7.06017549,25815.0,25814.0,0.01859789]
[1693971312852,7.05819549,25815.0,25814.0,0.01859789]
[1693971313064,7.05747549,25815.0,25814.0,0.01859789]
[1693971313241,7.06053549,25815.0,25814.0,0.01859789]
[1693971313581,7.04085549,25815.0,25814.0,0.01859789]
[1693971313713,7.06377549,25815.0,25814.0,0.01859789]
[1693971313917,7.04085549,25815.0,25814.0,0.01859789]
[1693971314126,7.04211549,25815.0,25814.0,0.01859789]
[1693971314329,7.06593549,25815.0,25814.0,0.01859789]
[1693971314590,7.06701549,25815.0,25814.0,0.01859789]
[1693971314795,7.06161549,25815.0,25814.0,0.01859789]
[1693971315000,7.06683549,25815.0,25814.0,0.01859789]
[1693971315135,7.06701549,25815.0,25814.0,0.01859789]
[1693971315338,7.06305549,25815.0,25814.0,0.01859789]
[1693971315581,7.06575549,25815.0,25814.0,0.01859789]
[1693971315838,7.1287638,25815.0,25814.0,0.01859789]
[1693971316063,7.1181438,25815.0,25814.0,0.01859789]
[1693971316256,7.1255238,25815.0,25814.0,0.01859789]
[1693971316405,7.1284038,25815.0,25814.0,0.01859789]
[1693971316603,7.06755549,25815.0,25814.0,0.01859789]
[1693971316871,6.87739911,25815.0,25814.0,0.01859789]
[1693971317060,6.87559911,25815.0,25814.0,0.01859789]
[1693971317269,6.87721911,25815.0,25814.0,0.01859789]
[1693971317464,6.87703911,25815.0,25814.0,0.01859789]
[1693971317664,6.87667911,25815.0,25814.0,0.01859789]
[1693971317863,6.87541911,25815.0,25814.0,0.01859789]
[1693971318011,6.87613911,25815.0,25814.0,0.01859789]
[1693971318213,6.87505911,25815.0,25814.0,0.01859789]
[1693971318511,6.87109911,25815.0,25814.0,0.01859789]
[1693971318718,6.87379911,25815.0,25814.0,0.01859789]
[1693971318922,6.87343911,25815.0,25814.0,0.01859789]
[1693971319057,6.87289911,25815.0,25814.0,0.01859789]
[1693971319262,6.87541911,25815.0,25814.0,0.01859789]
[1693971319579,6.87739911,25815.0,25814.0,0.01859789]
[1693971319787,6.87685911,25815.0,25814.0,0.01859789]
[1693971319985,6.87451911,25815.0,25814.0,0.01859789]
[1693971320193,6.87433911,25815.0,25814.0,0.01859789]
[1693971320551,6.87415911,25815.0,25814.0,0.01859789]
[1693971320758,6.87433911,25815.0,25814.0,0.01859789]
[1693971320959,6.87901911,25815.0,25814.0,0.01859789]
[1693971321172,6.87937911,25815.0,25814.0,0.01859789]
[1693971321368,6.87847911,25815.0,25814.0,0.01859789]
[1693971321726,6.87829911,25815.0,25814.0,0.01859789]
[1693971321977,6.87883911,25815.0,25814.0,0.01859789]
[1693971322176,6.87937911,25815.0,25814.0,0.01859789]
[1693971322382,6.88153911,25815.0,25814.0,0.01859789]
[1693971322558,6.88189911,25815.0,25814.0,0.01859789]
[1693971322762,7.19324974,25815.0,25814.0,0.01859789]
[1693971322966,7.25408974,25815.0,25814.0,0.01859789]
[1693971323201,7.25282974,25815.0,25814.0,0.01859789]
[1693971323405,7.23734974,25815.0,25814.0,0.01859789]
[1693971323612,7.18736974,25815.0,25814.0,0.01859789]
[1693971323813,7.17962974,25815.0,25814.0,0.01859789]
[1693971324019,7.21406974,25815.0,25814.0,0.01859789]
[1693971324225,7.21298974,25815.0,25814.0,0.01859789]
[1693971324449,7.21172974,25815.0,25814.0,0.01859789]
[1693971324639,7.21010974,25815.0,25814.0,0.01859789]
[1693971324850,7.18502974,25815.0,25814.0,0.01859789]
[1693971325054,7.22348974,25815.0,25814.0,0.01859789]
[1693971325201,7.20746974,25815.0,25814.0,0.01859789]
[1693971325404,7.20422974,25815.0,25814.0,0.01859789]
[1693971325660,7.21916974,25815.0,25814.0,0.01859789]
[1693971325862,7.21664974,25815.0,25814.0,0.01859789]
[1693971326009,7.20692974,25815.0,25814.0,0.01859789]
[1693971326212,7.20620974,25815.0,25814.0,0.01859789]
[1693971326421,7.20476974,25815.0,25814.0,0.01859789]
[1693971326626,7.20422974,25815.0,25814.0,0.01859789]
[1693971326823,7.20404974,25815.0,25814.0,0.01859789]
[1693971327021,7.20332974,25815.0,25814.0,0.01859789]
[1693971327499,7.20350974,25815.0,25814.0,0.01859789]
[1693971327709,7.20314974,25815.0,25814.0,0.01859789]
[1693971327914,7.20242974,25815.0,25814.0,0.01859789]
[1693971328121,7.19756974,25815.0,25814.0,0.01859789]
[1693971328341,6.97879911,25815.0,25814.0,0.01859789]
[1693971328544,6.67285911,25815.0,25814.0,0.01859789]
[1693971328756,6.97428992,25815.0,25814.0,0.01859789]
[1693971328938,6.97572992,25815.0,25814.0,0.01859789]
[1693971329177,6.97632992,25815.0,25814.0,0.01859789]
[1693971329381,6.97200992,25815.0,25814.0,0.01859789]
[1693971329565,6.97116992,25815.0,25814.0,0.01859789]
[1693971329757,6.95712992,25815.0,25814.0,0.01859789]
[1693971329976,6.96384992,25815.0,25814.0,0.01859789]
[1693971330261,6.95808992,25815.0,25814.0,0.01859789]
[1693971330479,6.97776992,25815.0,25814.0,0.01859789]
[1693971330611,6.97740992,25815.0,25814.0,0.01859789]
[1693971330845,6.97776992,25815.0,25814.0,0.01859789]
[1693971331046,6.97380992,25815.0,25814.0,0.01859789]
[1693971331243,6.97392992,25815.0,25814.0,0.01859789]
[1693971331445,6.97584992,25815.0,25814.0,0.01859789]
[1693971331649,6.98112992,25815.0,25814.0,0.01859789]
[1693971332050,6.98160992,25815.0,25814.0,0.01859789]
[1693971332265,6.98196992,25815.0,25814.0,0.01859789]
[1693971332464,6.98316992,25815.0,25814.0,0.01859789]
[1693971332709,6.98532992,25815.0,25814.0,0.01859789]
[1693971332915,6.98568992,25815.0,25814.0,0.01859789]
[1693971333111,6.98292992,25815.0,25814.0,0.01859789]
[1693971333380,6.98316992,25815.0,25814.0,0.01859789]
[1693971333561,6.97752992,25815.0,25814.0,0.01859789]
[1693971333779,6.97872992,25815.0,25814.0,0.01859789]
[1693971334012,6.98028992,25815.0,25814.0,0.01859789]
[1693971334250,6.98100992,25815.0,25814.0,0.01859789]